Cogmind - Beta 13 *** ADVENTURER MODE // 2024.07.07 @ 21:11:35 Player: 7604 Result: Destroyed by U6-ARP(R) with Subdweller Machine Gun Performance ------------- Evolutions (0) 0 Regions Visited (3) 600 Robots Destroyed (25) 125 Value Destroyed (748) 748 Prototype IDs (10) 200 Alien Tech Used (0) 0 Bonus (-13) -13 TOTAL SCORE: 1660 Bonus ------- Friendly Fire -13 Cogmind --------- Core Integrity 0/250 Matter 300/300 Energy 115/150 System Corruption 2% Temperature Warm (104) Movement Treading (240) Ox1 Location -10/Subcaves Parts ------- > --- POWER (1) -------- Light Angular Momentum Engine > --- PROPULSION (2) --- Light Treads Light Treads > --- UTILITY (2) ------ Medium Storage Unit Gun Armor > --- WEAPON (2+2) ----- Beam Rifle Subdweller Laser (+) Beamcaster Subdweller Beam Cannon (+) > --- INVENTORY (10) --- Ion Engine Makeshift Flight Unit High-capacity Storage Unit Structural Scanner Transport Network Coupler Scrap Shield Thief Drone Bay Datajack Peak State ------------ > --- POWER ------------ Light Angular Momentum Engine > --- PROPULSION ------- Light Treads Light Treads > --- UTILITY ---------- Medium Storage Unit Gun Armor > --- WEAPON ----------- Beam Rifle Subdweller Laser Beamcaster Subdweller Beam Cannon > --- INVENTORY -------- Ion Engine Makeshift Flight Unit High-capacity Storage Unit Structural Scanner Transport Network Coupler Scrap Shield Thief Drone Bay Datajack [Rating: 30] Favorites ----------- Power Light Angular Momentum Engine Engine Light Angular Momentum Engine Power Core Light Nuclear Core Propulsion Light Treads Treads Light Treads Utility Medium Storage Unit Device Improved Heat Sink Storage Medium Storage Unit Protection Gun Armor Weapon Beam Rifle Energy Gun Beam Rifle Energy Cannon Subdweller Beam Cannon Ballistic Gun Assault Rifle Special Weapon Mining Laser Build | -11 -10 -10 -10 ------- Run | Yrd Mat Min Sub Slots Evolved . | . . . . Power . | . . . . Propulsion . | . . . . Utility . | . . . . Weapon . | . . . . Parts Attached 24 | 5 9 3 7 Power 3 | 1 1 . 1 Engine 2 | 1 . . 1 Core 1 | . 1 . . Reactor . | . . . . Propulsion 8 | 1 4 1 2 Treads 8 | 1 4 1 2 Leg . | . . . . Wheel . | . . . . Hover . | . . . . Flight . | . . . . Utility 5 | 1 3 . 1 Device 2 | . 2 . . Storage 2 | 1 1 . . Processor . | . . . . Hackware . | . . . . Protection 1 | . . . 1 Artifact . | . . . . Weapon 8 | 2 1 2 3 Energy Gun 3 | . . 1 2 Energy Cannon 1 | . . . 1 Ballistic Gun 3 | 2 1 . . Ballistic Cannon . | . . . . Launcher . | . . . . Special Weapon 1 | . . 1 . Impact Weapon . | . . . . Slashing Weapon . | . . . . Piercing Weapon . | . . . . Special Melee Weapon . | . . . . Unidentified Prototypes . | . . . . Parts Lost 2 | . . 1 1 Power . | . . . . Propulsion 1 | . . . 1 Utility . | . . . . Weapon 1 | . . 1 . Highest Loss Streak 1 | . . 1 1 To Critical Strikes . | . . . . Average Slot Usage (%) 92 | . 90 97 93 Engine 7 | . 3 . 10 Core 5 | . 10 14 1 Treads 24 | . 22 26 25 Device 9 | . 10 14 7 Storage 13 | . 14 14 12 Protection 2 | . . . 5 Energy Gun 16 | . . 7 26 Ballistic Gun 11 | . 27 18 1 Naked Turns . | . . . . Heaviest Build 43 | 13 19 21 43 Greatest Support 40 | 20 40 40 40 Greatest Overweight (x) 1 | . . 1 1 Average Overweight (x) . | . . . . Largest Inventory Capacity 10 | 8 10 10 10 Average Capacity 9 | 6 8 10 10 Most Carried 10 | 1 10 10 10 Average Carried 8 | . 6 9 9 Final Capacity 10 | 8 10 10 10 Final Carried 10 | 1 10 10 9 Class Distribution -------------------- 68% | Scavenger-Mutant 16% | Mutant 14% | Scavenger-Gunner Dominant Class ---------------- Mutant | -10/Materials Scavenger-Mutant | -10/Mines Scavenger-Mutant | -10/Subcaves Resources | -11 -10 -10 -10 ----------- Run | Yrd Mat Min Sub Matter Collected 736 | 237 231 101 167 Remotely . | . . . . Salvage Created 1045 | . 492 211 342 Parts 53 | . 24 12 17 Haulers Intercepted 2 | . 2 . . Recyclers Shooed 1 | . 1 . . Parts Field Recycled . | . . . . Retrieved Matter . | . . . . Parts Self-Destructed 14 | . . . 14 Prevented . | . . . . Kills | -11 -10 -10 -10 ------- Run | Yrd Mat Min Sub Combat Hostiles Destroyed 19 | . 6 4 9 Guns 18 | . 6 4 8 Classes Destroyed 7 | . 4 1 2 Hauler 2 | . 2 . . Recycler 2 | . 1 1 . Watcher 2 | . 2 . . Swarmer 2 | . . . 2 Grunt 9 | . 6 2 1 Sentry 3 | . . 2 1 Subdweller 5 | . . . 5 Best Kill Streak 4 | . 4 2 3 Combat Bots Only 3 | . 3 2 3 Max Kills in Single Turn 1 | . 1 1 1 Gunslinging . | . . . . Exploded . | . . . . Melee . | . . . . Uniques/NPCs Destroyed . | . . . . Combat | -11 -10 -10 -10 -------- Run | Yrd Mat Min Sub Hostile Shots Fired 118 | . 36 43 39 Missed 34 | . 11 11 12 Damage Taken 992 | . 259 350 383 Core 262 | . 69 94 99 Absorbed by Shields . | . . . . Ignored by Resistances 292 | . 78 101 113 Core Remaining (%) 100 | 100 . . . Volleys Fired 101 | . 32 23 46 Largest 4 | . 2 2 4 Hottest 271 | . 40 120 271 Shots Fired 202 | . 64 36 102 Gun 197 | . 64 33 100 Cannon 2 | . . . 2 Launcher . | . . . . Special 3 | . . 3 . Kinetic 98 | . 64 24 10 Thermal 104 | . . 12 92 Explosive . | . . . . Electromagnetic . | . . . . Robot Hit Streak 18 | . 12 18 18 Robot Miss Streak 2 | . 2 2 2 Penetration Max . | . . . . Secondary Targets 3 | . 2 . 1 Max Gunslinging Chain 1 | . 1 . 1 Shots Hit Robots 131 | . 49 28 54 Core Hits 46 | . 22 10 14 Critical Kills 1 | . 1 . . Critical Parts Destroyed . | . . . . Critical Strikes 7 | . 1 . 6 Burn 5 | . . . 5 Destroy 2 | . 1 . 1 Melee Attacks . | . . . . Impact . | . . . . Slashing . | . . . . Piercing . | . . . . Sneak Attacks . | . . . . Combat Hostiles . | . . . . Follow-up Attacks . | . . . . Damage Inflicted 1758 | . 520 392 846 Guns 1710 | . 520 344 846 Cannons . | . . . . Explosions . | . . . . Melee . | . . . . Ramming . | . . . . Kinetic 888 | . 520 272 96 Thermal 870 | . . 120 750 Explosive . | . . . . Electromagnetic . | . . . . Impact . | . . . . Slashing . | . . . . Piercing . | . . . . Highest Corruption 2 | . 2 2 2 Average Corruption 1 | . 1 2 2 Corruption Purged . | . . . . Corruption Blocked . | . . . . Effects 28 | . 1 6 21 Message Errors 2 | . . . 2 Matter Fused 9 | . . 1 8 Heat Flow Errors 2 | . . 2 . Energy Discharges 6 | . . . 6 Parts Rejected 1 | . . 1 . Parts Fused 1 | . 1 . . Data Loss (minor) 4 | . . 2 2 Misfires 1 | . . . 1 Weapon Failures 2 | . . . 2 Overload Shots . | . . . . Overflow Damage . | . . . . Projectiles . | . . . . Explosions . | . . . . Melee . | . . . . Knockbacks . | . . . . Impact . | . . . . Kinetic . | . . . . Secondary . | . . . . Self-Inflicted Damage . | . . . . Shots . | . . . . Rammed . | . . . . Targets Rammed . | . . . . Kicked . | . . . . Crushed . | . . . . Highest Temperature 368 | . 24 166 368 Average Temperature 73 | . 9 59 82 Received Heat Transfer 468 | . 186 174 108 Siege Activations . | . . . . Robots Corrupted . | . . . . Combat Hostiles . | . . . . Parts Fried . | . . . . Impact Corruptions . | . . . . Robots Melted 1 | . . . 1 Combat Hostiles 1 | . . . 1 Parts Melted 4 | . . . 4 Heat Transferred 2174 | . . 285 1889 Parts Sabotaged . | . . . . Parts Stolen . | . . . . Parts Stripped . | . . . . Power Chain Reactions . | . . . . Alert | -11 -10 -10 -10 ------- Run | Yrd Mat Min Sub Peak Influence 208 | . 208 111 . Initial 11 | . . 11 . Average 52 | . 58 53 . Maximum Alert Level 1 | . 1 . . Low Security (%) 97 | 100 95 100 . Level 1 2 | . 4 . . Level 2 . | . . . . Level 3 . | . . . . Level 4 . | . . . . Level 5 . | . . . . High Security . | . . . . Max Security . | . . . . Squads Dispatched 1 | . 1 . . Investigation 1 | . 1 . . Extermination . | . . . . Reinforcement . | . . . . Assault . | . . . . Garrison . | . . . . Intercept . | . . . . Searches Triggered . | . . . . Construction Impeded . | . . . . Haulers Reinforced . | . . . . Active Scanning Responses . | . . . . Cargo Convoy Interrupts . | . . . . Stealth | -11 -10 -10 -10 --------- Run | Yrd Mat Min Sub Distress Signals . | . . . . Communications Jammed . | . . . . Distress Signals . | . . . . Times Spotted 30 | . 9 4 17 Peak Tracking Total 4 | . 4 2 4 Tactical Retreats . | . . . . Traps | -11 -10 -10 -10 ------- Run | Yrd Mat Min Sub Traps Triggered 4 | . 4 . . Indirectly . | . . . . Trap Hack Attempts . | . . . . Triggered . | . . . . Disarmed . | . . . . Reprogrammed . | . . . . Reused . | . . . . Traps Extracted . | . . . . Installed . | . . . . Triggered . | . . . . Machines | -11 -10 -10 -10 ---------- Run | Yrd Mat Min Sub Machines Disabled 1 | . . . 1 Max in Single Turn 1 | . . . 1 Machines Repaired . | . . . . Machines Dismantled . | . . . . Machines Sabotaged . | . . . . Overloaded Fab Kills . | . . . . Hacking | -11 -10 -10 -10 --------- Run | Yrd Mat Min Sub Machines Accessed 5 | . 3 1 1 Terminals 3 | . 3 . . Fabricators . | . . . . Repair Stations . | . . . . Recycling Units . | . . . . Scanalyzers . | . . . . Garrison Access . | . . . . Total Hacks 20 | . 10 1 9 Successful 13 | . 3 1 9 Failed 7 | . 7 . . Catastrophic 1 | . 1 . . Database Lockouts . | . . . . Manual 10 | . 10 . . Terminals 10 | . 10 . . Fabricators . | . . . . Repair Stations . | . . . . Recycling Units . | . . . . Scanalyzers . | . . . . Garrison Access . | . . . . Terminal Hacks 13 | . 3 1 9 Record 8 | . . . 8 Part Schematic 2 | . 2 . . Open Door 1 | . . 1 . Branch Access Points 1 | . 1 . . Derelict Proto ID Bank 1 | . . . 1 Fabricator Hacks . | . . . . Repair Station Hacks . | . . . . Recycling Unit Hacks . | . . . . Scanalyzer . | . . . . Garrison Access Hacks . | . . . . Unauthorized Hacks . | . . . . Terminals . | . . . . Fabricators . | . . . . Repair Stations . | . . . . Recycling Units . | . . . . Scanalyzers . | . . . . Garrison Access . | . . . . Data Cores Recovered . | . . . . Used . | . . . . Hacking Detections 2 | . 2 . . Full Trace Events 1 | . 1 . . Feedback Events . | . . . . Feedback Blocked . | . . . . Robot Schematics Acquired . | . . . . Robots Built . | . . . . Authchips . | . . . . Time . | . . . . Total Robot Build Rating . | . . . . Part Schematics Acquired 2 | . 2 . . Parts Built . | . . . . Authchips . | . . . . Time . | . . . . Total Part Build Rating . | . . . . Parts Repaired . | . . . . Time . | . . . . Parts Recycled . | . . . . Recycled Matter . | . . . . Retrieved Matter . | . . . . Retrieved Components . | . . . . Parts Scanalyzed . | . . . . Part Schematics Acquired . | . . . . Parts Damaged . | . . . . Bothacking | -11 -10 -10 -10 ------------ Run | Yrd Mat Min Sub Used RIF Installer . | . . . . Robots Hacked . | . . . . Non-combat . | . . . . Combat . | . . . . Robot Hacks Applied . | . . . . Relay Couplers Released . | . . . . Fabnet Peak Effective % . | . . . . Robots Rewired . | . . . . Allies Hacked . | . . . . Hacks Repelled . | . . . . Allies | -11 -10 -10 -10 -------- Run | Yrd Mat Min Sub Total Allies . | . . . . Largest Group . | . . . . Highest-Rated Group . | . . . . Highest-Rated Ally . | . . . . Total Orders . | . . . . Ally Attacks . | . . . . Total Damage . | . . . . Kills . | . . . . Allies Corrupted . | . . . . Allies Melted . | . . . . Intel | -11 -10 -10 -10 ------- Run | Yrd Mat Min Sub Robot Analysis Total . | . . . . Derelict Logs Recovered 2 | . . 1 1 Drone Launches . | . . . . Drone Recoveries . | . . . . Exploration | -11 -10 -10 -10 ------------- Run | Yrd Mat Min Sub Turns Passed 2915 | 90 777 404 1644 Spaces Moved 1546 | 46 413 193 894 Core 3 | 3 . . . Treads 1543 | 43 413 193 894 Legs . | . . . . Wheels . | . . . . Hover . | . . . . Flight . | . . . . Fastest Speed 50 | 50 160 160 160 Average Speed 163 | 152 160 161 165 Slowest Speed 240 | 160 160 240 240 Overloaded Moves . | . . . . Propulsion Burnouts . | . . . . Robots Hopped . | . . . . Cave-ins Triggered . | . . . . Exploration Rate (%) 31 | 4 59 30 34 Regions Visited 3 Branch Regions 2 Pre-discovered Areas 1 | . . 1 . Known Exits Taken 1 | . 1 . . Unknown Exits Taken 2 | 1 . 1 . Scrap Searched 2 | . . . 2 Spaces Dug . | . . . . Terrain Destroyed 1 | . . . 1 Melee . | . . . . Projectile 1 | . . . 1 AOE . | . . . . Terrain Rammed . | . . . . Walls Destroyed . | . . . . Machines Disabled . | . . . . Actions | -11 -10 -10 -10 --------- Run | Yrd Mat Min Sub Total 1739 | 63 469 244 963 Wait 50 | 12 8 23 7 Move 1543 | 45 412 192 894 Hop . | . . . . Pick Up 10 | 1 6 1 2 Fast Attach 18 | 5 6 2 5 Attach 2 | . . 1 1 Detach 3 | . 1 1 1 Swap 4 | . 3 . 1 Drop 8 | . 1 1 6 Fire 101 | . 32 23 46 Melee . | . . . . Ram . | . . . . Kick . | . . . . Crush . | . . . . Escape Stasis . | . . . . Rewire . | . . . . Trap . | . . . . Miscellaneous . | . . . . Route ------- -11/Scrapyard -10/Materials (discovered 2 exits: [*Mat] / *Min) -10/Mines (discovered 2 exits: [*Mat] / *Sub) -10/Subcaves (discovered 1 exit: Rec) History --------- Turn | Location | Event 9 | -11/Scrapyard | Discovered new exit (range 16) 91 | -11/Scrapyard | Entered Materials 168 | -10/Materials | Identified exit to Mines 325 | -10/Materials | Build established: Mutant 524 | -10/Materials | Discovered new exit (range 14) 805 | -10/Materials | Build established: Scavenger-Mutant 868 | -10/Materials | Entered Mines 937 | -10/Mines | Discovered new exit (range 8) 1023 | -10/Mines | Core integrity fell below 50% 1189 | -10/Mines | Found the Drone Emporium 1202 | -10/Mines | Found Prototype Device 1264 | -10/Mines | Discovered new exit (range 6) 1272 | -10/Mines | Entered Subcaves 1283 | -10/Subcaves | Identified exit to Recycling 1434 | -10/Subcaves | Ambushed by swarm of Subdwellers 1501 | -10/Subcaves | Lost 3 allies 1629 | -10/Subcaves | A swath of the cavern ceiling suddenly collapsed 2140 | -10/Subcaves | Visited 4L-MR0's lab 2157 | -10/Subcaves | Found Gun Armor 2158 | -10/Subcaves | Attached Gun Armor, gained temporary slots: Weapon x2 2475 | -10/Subcaves | Core integrity fell below 20% 2791 | -10/Subcaves | Build established: Scavenger-Gunner 2807 | -10/Subcaves | A swath of the cavern ceiling suddenly collapsed 2916 | -10/Subcaves | Destroyed by U6-ARP(R) with Subdweller Machine Gun Last Messages --------------- 02719_ Disposable Heat Sink melted. 02719_ HQ-2U1(R) destroyed. 02719_ Switching to secondary target: 8P-SH4(R). 02723_ 8P-SH4(R) suffers critical hit (Burn). 02723_ 8P-SH4(R) suffers critical hit (Destroy). 02723_ 8P-SH4(R) suffers critical hit (Burn). 02723_ 8P-SH4(R) overheating. 02724_ 8P-SH4(R) critical meltdown. 02726_ W3-HWX(R) destroyed. 02748_ Acquired 10 matter. 02751_ Acquired Sub. Beam Cannon. 02755_ Acquired 10 matter. 02800_ RV-I15(R) destroyed. 02807_ 11 Matter crushed. 02807_ 9 Matter crushed. 02807_ Sub. Monowheel crushed. 02807_ Sub. Laser crushed. 02807_ 14 Matter crushed. A swath of the cavern ceiling suddenly collapses. Map ----- +----------------------------------------------------+ | ?????????????????## ### ## ##? | | ????????????????## ######?############?? | | ???????????????## ##???????????????????? | | ???????????????# #????????????????????? | | ???????????????# ##????????????????????? | | ???????????????## #?????????????????????? | | ????????????????## ##????????????????????? | | ?????????????????# #????????????????????? | | ????????????????## #????????????????????? | | ????????????????# ##????????????????????? | | ????????????????## #????????????????????? | | ??????????????#### ##???????????????????? | | ??????????????# #???????????????????? | | ??????????????# #???????????????????? | | ??????????????# #???????????????????? | | ??????????????# ### ##??????????????????? | | ??????????????# ??# ##?????????????????? | | ??????????????## ##### #?????????????????? | | ???????????????### # ##?????????????????? | | ????????????????# #??????????????????? | | ???????????????## ####??????????????????? | | ???????????????# ##?????????????????????? | | ???????????????## ##??????????????????????? | | ???????????????# #??????????????????????? | | ???????????????## #??????????????????????? | | ???????????????#; @#??????????????????????? | | ????????????# ##??????????????????????? | | ????????????##R ???????????????????????? | | ???????????? ???????????????????????? | | ???????????# #< ??????????????????????? | | ???????????#?# ??????????????????????? | | ?????????????## #?????????????????????? | | ??????????????##### #?????????????????????? | | ???????????????????##?????????????????????? | | ??????????????????????????????????????????? | | ??????????????????????????????????????????? | | ??????????????????????????????????????????? | | ??????????????????????????????????????????? | | ??????????????????????????????????????????? | | ??????????????????????????????????????????? | | ??????????????????????????????????????????? | | ??????????????????????????????????????????? | | ??????????????????????????????????????????? | | ??????????????????????????????????????????? | | ??????????????????????????????????????????? | | ??????????????????????????????????????????? | | ??????????????????????????????????????????? | | ??????????????????????????????????????????? | | ??????????????????????????????????????????? | | ??????????????????????????????????????????? | +----------------------------------------------------+ Best States ------------- Heat Dissipation 39 Energy Generation 18 Energy Capacity 250 Matter Stores 300 Matter Capacity 300 Sight Range 16 Terrain Scan Density 10 Armor Coverage 60 Resistance: KI 20 Resistance: TH 20 Resistance: EX 20 Resistance: EM 20 Resistance: I 20 Resistance: S 20 Resistance: P 20 Evasion (%) 40 Recoil Reduction 2 Offensive Hacking 10 Item Schematics ----------------- Structural Scanner | -10/Materials | Hacked Datajack | -10/Materials | Hacked Robot Schematics ------------------ None Fabricated ------------ Nothing Alien Tech Used ----------------- None Achievements -------------- None Challenges ------------ None Game ------ Seed ThunderCoilRedistributor Manual? 0 Play Time 00:21:36 Cumulative 28.1 hours Start 2024.07.07 @ 20:52:43 End 2024.07.07 @ 21:11:35 Sessions 1 Manual Loads 0 Difficulty Adventurer Special Mode None Game No. 22 Rogue 0 Adventurer 22 Explorer 0 Win Type - Total 0 Types 0/0/0/0/0/0/0/0/0 Lore% 16 Gallery% 36 Achievement% 26 Wizard Run 0 Options --------- Layout 2 ASCII 0 Keyboard 1 Movement Numpad Keybinds 0 Fullscreen 1 Font 24/Tamsyn Map View 50x44 Zoom Use 0% Tactical HUD 1 Map Filters NONE Filters NONE Steam 1 RUN: 08bd92ec-a1a7-4eac-830f-d99703804724